Cogmind - Beta 16.1 @@@ ROGUE MODE // 2026.05.01 @ 17:26:01 Player: c0met Result: Destroyed by A8-FZM(R) with Subdweller Machine Gun Performance ------------- Evolutions (0) 0 Regions Visited (2) 400 Robots Destroyed (35) 175 Value Destroyed (908) 908 Prototype IDs (1) 20 Alien Tech Used (0) 0 Bonus (0) 0 TOTAL SCORE: 1503 Bonus ------- None Cogmind --------- Core Integrity 0/250 Matter 290/300 Energy 45/100 System Corruption 0% Temperature Cool (0) Movement Walking (120) Location -10/Subcaves Parts ------- > --- POWER (1) -------- (None) > --- PROPULSION (2) --- Myomer Leg Myomer Leg > --- UTILITY (2) ------ Large Storage Unit Signal Interpreter > --- WEAPON (2) ------- Improved EM Shotgun > --- INVENTORY (15) --- Subdweller Power Source Neutrino Core Aluminum Leg Medium Storage Unit Visual Processing Unit Sensor Array Improved Terrain Scanner Seismic Detector Targeting Computer Hardened Light Armor Plating Scrap Shield Shield Generator Grenade Launcher Peak State ------------ > --- POWER ------------ Light Ion Engine > --- PROPULSION ------- Myomer Leg Myomer Leg > --- UTILITY ---------- Large Storage Unit Signal Interpreter > --- WEAPON ----------- Improved EM Shotgun Heavy Assault Rifle > --- INVENTORY -------- Neutrino Core Aluminum Leg Medium Storage Unit Visual Processing Unit Sensor Array Improved Terrain Scanner Seismic Detector Targeting Computer Hardened Light Armor Plating Shield Generator Subdweller Beam Cannon Grenade Launcher [Rating: 24] Favorites ----------- Power Ion Engine Engine Ion Engine Propulsion Aluminum Leg Leg Aluminum Leg Utility Terrain Scan Processor Device Improved Terrain Scanner Storage Medium Storage Unit Processor Terrain Scan Processor Weapon Heavy Assault Rifle Energy Gun EM Pulse Gun Energy Cannon Subdweller Beam Cannon Ballistic Gun Heavy Assault Rifle Launcher Grenade Launcher Special Weapon Mining Laser Build | -11 -10 -10 ------- Run | Yrd Mat Sub Slots Evolved . | . . . Power . | . . . Propulsion . | . . . Utility . | . . . Weapon . | . . . Parts Attached 32 | 5 23 4 Power 7 | 1 5 1 Engine 7 | 1 5 1 Core . | . . . Reactor . | . . . Propulsion 8 | 2 4 2 Treads . | . . . Leg 8 | 2 4 2 Wheel . | . . . Hover . | . . . Flight . | . . . Utility 7 | 1 6 . Device 2 | . 2 . Storage 3 | 1 2 . Processor 2 | . 2 . Hackware . | . . . Protection . | . . . Artifact . | . . . Weapon 10 | 1 8 1 Energy Gun 3 | 1 2 . Energy Cannon 1 | . . 1 Ballistic Gun 3 | . 3 . Ballistic Cannon . | . . . Launcher 1 | . 1 . Special Weapon 2 | . 2 . Impact Weapon . | . . . Slashing Weapon . | . . . Piercing Weapon . | . . . Special Melee Weapon . | . . . Unidentified Prototypes 1 | . 1 . Parts Lost 7 | . 2 5 Power 2 | . . 2 Propulsion . | . . . Utility 1 | . 1 . Weapon 4 | . 1 3 Highest Loss Streak 3 | . 1 3 To Critical Strikes . | . . . Average Backups 7 | 3 6 12 Power . | . . 1 Propulsion . | 1 . . Utility 3 | . 3 8 Weapon 1 | 2 1 1 Tool/Special . | . . . Unused Backups 26 | . 14 12 Power 5 | . 2 3 Propulsion 4 | . 4 . Utility 10 | . 2 8 Weapon 7 | . 6 1 Tool/Special . | . . . Average Slot Usage (%) 99 | . 99 99 Engine 13 | . 14 13 Leg 28 | . 28 28 Device 8 | . 10 . Storage 7 | . 5 14 Processor 11 | . 11 14 Energy Gun 11 | . 12 5 Energy Cannon 1 | . . 8 Ballistic Gun 10 | . 10 11 Launcher 1 | . 1 . Special Weapon 2 | . 2 2 Peak Build Rating 24 | 5 12 24 Average Rating 11 | 4 10 20 On Entrance 5 | . 5 10 Avg Prop Armor Cover (%) . | . . . Naked Turns . | . . . Heaviest Build 34 | 6 21 34 Greatest Support 50 | 20 20 50 Greatest Overweight (x) 1 | . 1 1 Average Overweight (x) . | . . . Largest Inventory Capacity 15 | 5 15 15 Average Capacity 7 | 5 6 13 Most Carried 15 | 5 10 15 Average Carried 7 | 3 6 13 Final Capacity 15 | 5 10 15 Final Carried 14 | 5 10 14 Class Distribution -------------------- 65% | Mutant 34% | Scavenger-Mutant Dominant Class ---------------- Mutant | -10/Materials Scavenger-Mutant | -10/Subcaves Resources | -11 -10 -10 ----------- Run | Yrd Mat Sub Matter Collected 869 | 300 484 85 Remotely . | . . . Salvage Created 1122 | 102 675 345 Parts 70 | 4 47 19 Haulers Intercepted 1 | . 1 . Recyclers Shooed 1 | . 1 . Parts Field Recycled . | . . . Retrieved Matter . | . . . Parts Self-Destructed . | . . . Prevented . | . . . Parts Restored . | . . . Kills | -11 -10 -10 ------- Run | Yrd Mat Sub Combat Hostiles Destroyed 23 | 1 15 7 Guns 17 | 1 12 4 Cannons 3 | . . 3 AOE 3 | . 3 . Classes Destroyed 9 | 3 5 1 Worker 2 | 1 1 . Builder 1 | . 1 . Tunneler 3 | 1 2 . Hauler 1 | . 1 . Operator 2 | . 2 . Watcher 3 | . 3 . Swarmer 3 | . 3 . Grunt 13 | 1 12 . Subdweller 7 | . . 7 Best Kill Streak 6 | 2 6 3 Combat Bots Only 3 | 1 3 3 Max Kills in Single Turn 2 | 1 2 1 Gunslinging . | . . . Exploded 2 | . 2 . Melee . | . . . Uniques/NPCs Destroyed . | . . . Combat | -11 -10 -10 -------- Run | Yrd Mat Sub Hostile Shots Fired 103 | 6 58 39 Missed 30 | 3 16 11 Hits 73 | 3 42 28 Projectile 73 | 3 42 28 Critical Strikes 2 | . . 2 Damage Taken 1202 | 31 493 678 Core 256 | . 114 142 Absorbed by Shields 85 | . 85 . Core Remaining (%) 100 | 100 . . Volleys Fired 107 | 19 69 19 Largest 2 | 1 2 2 Hottest 123 | 40 123 103 Shots Fired 154 | 19 103 32 Gun 137 | 19 92 26 Cannon 6 | . . 6 Launcher 4 | . 4 . Special 7 | . 7 . Kinetic 56 | . 43 13 Thermal 13 | . 7 6 Explosive 4 | . 4 . Electromagnetic 81 | 19 49 13 Robot Hit Streak 11 | 2 9 11 Robot Miss Streak 6 | 4 6 3 Penetration Max . | . . . Secondary Targets . | . . . Shots Hit Robots 84 | 9 50 25 Core Hits 50 | 3 33 14 Critical Kills . | . . . Critical Parts Destroyed . | . . . Critical Strikes 2 | 1 1 . Corrupt 2 | 1 1 . Melee Attacks . | . . . Impact . | . . . Slashing . | . . . Piercing . | . . . Sneak Attacks . | . . . Combat Hostiles . | . . . Follow-up Attacks . | . . . Damage Inflicted 1846 | 119 1266 461 Guns 1236 | 119 824 293 Cannons 168 | . . 168 Explosions 418 | . 418 . Melee . | . . . Ramming . | . . . Kinetic 597 | . 479 118 Thermal 370 | . 202 168 Explosive 240 | . 240 . Electromagnetic 639 | 119 345 175 Impact . | . . . Slashing . | . . . Piercing . | . . . Highest Corruption . | . . . Average Corruption . | . . . Corruption Purged . | . . . Corruption Blocked . | . . . Overload Shots . | . . . Overflow Damage 21 | . 21 . Projectiles . | . . . Explosions 21 | . 21 . Melee . | . . . Knockbacks . | . . . Impact . | . . . Kinetic . | . . . Secondary . | . . . Self-Inflicted Damage 67 | . 67 . Shots 3 | . 3 . Rammed . | . . . Targets Rammed . | . . . Kicked . | . . . Crushed . | . . . Highest Temperature 96 | 18 96 . Average Temperature 20 | 12 20 . Received Heat Transfer 368 | 18 233 117 Siege Activations . | . . . Martial Activations . | . . . Shielding Activations . | . . . Robots Disrupted 1 | . . 1 Combat Hostiles 1 | . . 1 Robots Corrupted . | . . . Combat Hostiles . | . . . Parts Fried 2 | 2 . . Impact Corruptions . | . . . Robots Melted . | . . . Combat Hostiles . | . . . Parts Melted 2 | . . 2 Heat Transferred 572 | . 350 222 Parts Sabotaged . | . . . Parts Stolen . | . . . Parts Stripped . | . . . Power Chain Reactions 3 | . 3 . Alert | -11 -10 -10 ------- Run | Yrd Mat Sub Maximum Alert Level . | . . . Low Security (%) 100 | 100 100 . Level 1 . | . . . Level 2 . | . . . Level 3 . | . . . Level 4 . | . . . Level 5 . | . . . High Security . | . . . Max Security . | . . . Peak Influence 150 | 25 150 . Initial . | . . . Average 54 | 2 61 . Influence Increases 600 | 30 570 . Destroy 0b10 Robot/C 320 | 20 300 . Destroy 0b10 Robot/NC 60 | 10 50 . Destroy Leader 78 | . 78 . Disable Machine 30 | . 30 . Destroy Structure 37 | . 37 . Partial Spotted 15 | . 15 . Lose Combat Pursuer 60 | . 60 . Influence Decreases 600 | 30 500 70 Entered New Map 34 | . . 34 Time Decay 546 | 30 480 36 Lost Part 20 | . 20 . Squads Dispatched 4 | . 4 . Investigation 2 | . 2 . Extermination . | . . . Reinforcement 2 | . 2 . Assault . | . . . Garrison . | . . . Intercept . | . . . Searches Triggered . | . . . Construction Impeded . | . . . Haulers Reinforced . | . . . Active Scanning Responses . | . . . Cargo Convoy Interrupts . | . . . Stealth | -11 -10 -10 --------- Run | Yrd Mat Sub Distress Signals 3 | . 3 . Communications Jammed . | . . . Distress Signals . | . . . Times Spotted 52 | 1 35 16 Peak Tracking Total 6 | 1 3 6 Tactical Retreats 4 | . 4 . Traps | -11 -10 -10 ------- Run | Yrd Mat Sub Traps Triggered 2 | . 2 . Indirectly . | . . . Trap Hack Attempts . | . . . Triggered . | . . . Disarmed . | . . . Reprogrammed . | . . . Reused . | . . . Traps Extracted . | . . . Installed . | . . . Triggered . | . . . Machines | -11 -10 -10 ---------- Run | Yrd Mat Sub Machines Disabled 2 | . 2 . Max in Single Turn 1 | . 1 . Machines Repaired . | . . . Machines Dismantled . | . . . Machines Sabotaged . | . . . Overloaded Fab Kills . | . . . Hacking | -11 -10 -10 --------- Run | Yrd Mat Sub Machines Accessed 6 | . 6 . Terminals 4 | . 4 . Fabricators . | . . . Repair Stations . | . . . Recycling Units 2 | . 2 . Scanalyzers . | . . . Garrison Access . | . . . Total Hacks 16 | . 16 . Successful 10 | . 10 . Failed 6 | . 6 . Catastrophic . | . . . Database Lockouts . | . . . Manual 4 | . 4 . Terminals 11 | . 11 . Fabricators . | . . . Repair Stations . | . . . Recycling Units 5 | . 5 . Scanalyzers . | . . . Garrison Access . | . . . Terminal Hacks 5 | . 5 . Record 1 | . 1 . Emergency Access Points 1 | . 1 . Alert Level 1 | . 1 . Locate Traps 1 | . 1 . Zone Layout 1 | . 1 . Fabricator Hacks . | . . . Repair Station Hacks . | . . . Recycling Unit Hacks 4 | . 4 . Report Inventory 4 | . 4 . Scanalyzer . | . . . Garrison Access Hacks . | . . . Unauthorized Hacks 1 | . 1 . Terminals 1 | . 1 . Botnet 1 | . 1 . Fabricators . | . . . Repair Stations . | . . . Recycling Units . | . . . Scanalyzers . | . . . Garrison Access . | . . . Data Cores Recovered . | . . . Used . | . . . Hacking Detections 5 | . 5 . Full Trace Events . | . . . Feedback Events . | . . . Feedback Blocked . | . . . Robot Schematics Acquired . | . . . Robots Built . | . . . Authchips . | . . . Time . | . . . Total Robot Build Rating . | . . . Part Schematics Acquired . | . . . Parts Built . | . . . Authchips . | . . . Time . | . . . Total Part Build Rating . | . . . Part Studies Acquired . | . . . Parts Repaired . | . . . Time . | . . . Parts Recycled . | . . . Recycled Matter . | . . . Retrieved Matter . | . . . Retrieved Components . | . . . Parts Scanalyzed . | . . . Part Schematics Acquired . | . . . Parts Damaged . | . . . Bothacking | -11 -10 -10 ------------ Run | Yrd Mat Sub Used RIF Installer . | . . . Robots Hacked . | . . . Non-combat . | . . . Combat . | . . . Robot Hacks Applied . | . . . Relay Couplers Released . | . . . Fabnet Peak Effective % . | . . . Robots Rewired . | . . . Allies Hacked . | . . . Hacks Repelled . | . . . Allies | -11 -10 -10 -------- Run | Yrd Mat Sub Total Allies . | . . . Largest Group . | . . . Highest-Rated Group . | . . . Highest-Rated Ally . | . . . Total Orders . | . . . Ally Attacks . | . . . Total Damage . | . . . Kills . | . . . Allies Corrupted . | . . . Allies Melted . | . . . Intel | -11 -10 -10 ------- Run | Yrd Mat Sub Active Infowar (turns) 1207 | . 1207 . Terrain 1207 | . 1207 . Robot Analysis Total . | . . . Derelict Logs Recovered . | . . . Drone Launches . | . . . Drone Recoveries . | . . . Exploration | -11 -10 -10 ------------- Run | Yrd Mat Sub Turns Passed 3268 | 286 2399 583 Spaces Moved 2226 | 208 1592 426 Core 20 | 20 . . Treads . | . . . Legs 2206 | 188 1592 426 Wheels . | . . . Hover . | . . . Flight . | . . . Fastest Speed 50 | 50 120 120 Average Speed 126 | 113 129 120 Slowest Speed 190 | 120 190 190 Overloaded Moves . | . . . Propulsion Burnouts . | . . . Robots Hopped . | . . . Potential Cave-ins . | . . . Cave-ins Triggered . | . . . Exploration Rate (%) 45 | 9 99 29 Regions Visited 2 Branch Regions 1 Pre-discovered Areas 1 | . . 1 Known Exits Taken 1 | . 1 . Unknown Exits Taken 1 | 1 . . Scrap Searched . | . . . Spaces Dug 6 | . 6 . Terrain Destroyed 35 | . 35 . Melee . | . . . Projectile 1 | . 1 . AOE 34 | . 34 . Terrain Rammed . | . . . Walls Destroyed . | . . . Machines Disabled . | . . . Actions | -11 -10 -10 --------- Run | Yrd Mat Sub Total 2525 | 237 1822 466 Wait 75 | . 70 5 Move 2224 | 207 1591 426 Hop . | . . . Pick Up 37 | 6 25 6 Fast Attach 11 | 4 6 1 Attach 5 | 1 2 2 Detach . | . . . Swap 30 | . 26 4 Drop 36 | . 33 3 Fire 107 | 19 69 19 Melee . | . . . Ram . | . . . Kick . | . . . Crush . | . . . Escape Stasis . | . . . Rewire . | . . . Trap . | . . . Miscellaneous . | . . . Route ------- -11/Scrapyard -10/Materials (discovered 5 exits: [*Mat x3] / *Min / *Sub) -10/Subcaves (discovered 1 exit: [*Mat]) History --------- Turn | Location | Event 2 | -11/Scrapyard | Met Revision 17 59 | -11/Scrapyard | Discovered new exit (range 8) 287 | -11/Scrapyard | Entered Materials 344 | -10/Materials | Build established: Mutant 536 | -10/Materials | Discovered new exit (range 9) 586 | -10/Materials | Discovered new exit (range 10) 1040 | -10/Materials | Discovered new exit (range 13) 1213 | -10/Materials | Discovered new exit (range 8) 1337 | -10/Materials | Build established: Scavenger-Mutant 2040 | -10/Materials | Build established: Mutant 2099 | -10/Materials | Discovered new exit (range 10) 2647 | -10/Materials | Identified exit to Mines 2685 | -10/Materials | Identified exit to Subcaves 2686 | -10/Materials | Entered Subcaves 2687 | -10/Subcaves | Approached by a straggling Scientist 2692 | -10/Subcaves | Shifting Twisted Machinery released Scrap Shield 2696 | -10/Subcaves | Shifting Twisted Machinery released Riot Gun 2720 | -10/Subcaves | Learned location of Zion (-7) 2720 | -10/Subcaves | Met a Zionite searching for "candidates" 2782 | -10/Subcaves | Ambushed by swarm of Subdwellers 2791 | -10/Subcaves | Core integrity fell below 50% 3220 | -10/Subcaves | Build established: Scavenger-Mutant 3253 | -10/Subcaves | Discovered new exit (range 9) 3254 | -10/Subcaves | Core integrity fell below 20% 3269 | -10/Subcaves | Destroyed by A8-FZM(R) with Subdweller Machine Gun Last Messages --------------- 30-1KY(O) collects matter. Subatomizers dissect the Aluminum Leg. LL-B29(R) suffers critical hit (Burn). LL-B29(R) destroyed. 2W-9QZ(g) destroyed. 0F-ZV3(R) destroyed. 9G-AZ3(u) tweaks Twisted Machinery. O6-S6H(R) destroyed. HE-SZQ(R) destroyed. Acquired 9 matter. DH-RC9(R) emerges from the Twisted Machinery. EXIT=FOUND Sub. Laser melted. 55-SUR(R) destroyed. 87-O5A(R) destroyed. Lgt. Ion Engine destroyed. Hvy. Assault Rifle destroyed. Sub. Beam Cannon destroyed. IU-XT9(R) shuts down. DH-RC9(R) destroyed. Map ----- +----------------------------------------------------+ | ?????????????????????????????????????????????????? | | ?????????????????????????????????????????????????? | | ?????????????????????????????????????????????????? | | ?????????????????????????????????????????????????? | | ?????????????????????????????????????????????????? | | ?????????????????????????????????????????????????? | | ?????????????????????????????????????????????????? | | ?????????????????????????????????????????????????? | | ?????????????????????????????????????????????????? | | ?????????????????????????????????????????????????? | | ?????????????????????????????????????????????????? | | ?????????????????????????????????????????????????? | | ??????????????????? ???????????????????????????? | | ??????????????????? ???????????????????????????? | | ????????????????# ? ???????????????????????????? | | ????????????? ??# ? ???????????????????????????? | | ????????????? ?# ??#????????????????????????? | | ??????##??## ?# # ?#"??????#?????????????????? | | ??????# ## # ??? " ? ??????< #????????????????? | | ??????# ????? ""# ?????" #????????????????? | | ??????# ?????? ""##???" ?????????????????? | | ??????# ?????#### "#### ? #????????????????? | | ??????# ????### ###&/&"# ## # #??????????????? | | ??????# ##???# !%!R"" ?????????????? | | ??????# #??## *R!"""" #???????????????? | | ????#### ##?# ##""# #@ ##" ?????????????????? | | ??### ### ############????????????????????? | | ??# %! """##??????????????????????????? | | ???# """"#??????????????????????????? | | ???# ## ???????????????????????? | | ???# ##? " ???????????????????? | | ???# ## ## #?? """"???????????????????????? | | ??## ###### ""#??? ###" ????????????????????????? | | ??# #???# """?? #??? ????????????????????????? | | ??# #???#### "?? #????????????????????????????? | | ??## #???????###??#????????????????????????????? | | ???# #?????????????????????????????????????????? | | ??## #######???????????????????????????????????? | | ??# # # "##??????????????????????????????????? | | ??# "#??????????????????????????????????? | | ??## #??????????????????????????????????? | | ???# # # ##??????????????????????????????????? | | ???####### #???#??????????????????????????????? | | ??### ####&= ### #??????????????????????????????? | | ??# &%* #??????????????????????????????? | | ??## !%= #??????????????????????????????? | | ??# # # * ####??????????????????????????????? | | ??# ## #?????????????????????????????????? | | ??# ## ##?????????????????????????????????? | | ??## ## ##??????????????????????????????????? | +----------------------------------------------------+ Best States ------------- Heat Dissipation 25 Energy Generation 10 Energy Capacity 250 Matter Stores 350 Matter Capacity 350 Sight Range 16 Terrain Scan Range 16 Terrain Scan Density 85 Evasion (%) 55 Item Schematics ----------------- None Robot Schematics ------------------ None Fabricated ------------ Nothing Repaired ---------- Nothing Studied --------- None Alien Tech Used ----------------- None Achievements -------------- None Challenges ------------ None Game ------ Seed GatlingXenonBlade Manual? 0 Play Time 02:06:41 Cumulative 21.7 hours Start 2026.04.29 @ 22:18:57 End 2026.05.01 @ 17:26:01 Sessions 7 Manual Loads 0 Difficulty Rogue Special Mode None Game No. 3 Rogue 3 Adventurer 0 Explorer 0 Win Type - Total 0 Types 0/0/0/0/0/0/0/0/0/0 Lore% 5 Gallery% 8 Achievement% 12 Wizard Run 0 Options --------- Layout 0 ASCII 0 Keyboard 0 Movement Numpad Keybinds 0 Fullscreen 2 Font 14/SmallcapsGlow Map View 75x58 Zoom Use 0% Tactical HUD 0 Map Filters NONE Filters NONE Steam 0 RUN: 86f7dff9-103e-4a0b-987d-7d56f264f735